Cogmind - Beta 14 @@@ ROGUE MODE // 2024.08.08 @ 14:49:28 Player: J1ang-5h1 Result: Destroyed by H-77 Assassin with High-powered Shotgun Performance ------------- Evolutions (6) 3000 Regions Visited (12) 2400 Robots Destroyed (112) 560 Value Destroyed (4256) 4256 Prototype IDs (41) 820 Alien Tech Used (0) 0 Bonus (2118) 2118 TOTAL SCORE: 13154 Bonus ------- High Alert Combat Kills 161 Follower Combat Kills 897 Registered with UFD 300 Met Warlord at Base 500 MAIN.C Attacked Warlord 500 Friendly Fire -240 Cogmind --------- Core Integrity 0/1150 Matter 210/300 Energy 9/450 System Corruption 16% Temperature Warning (377) Movement Treading (360) Ox2 Location -4/Upper Caves Parts ------- > --- POWER (2) -------- (None) > --- PROPULSION (6) --- Spiked Medium Treads > --- UTILITY (8) ------ Power Amplifier High-capacity Storage Unit Energy Well Enhanced Optical Array Improved Kinecellerator Advanced ECM Suite Improved Shock Absorption System > --- WEAPON (3) ------- Variable Charge Gun Railgun > --- INVENTORY (20) --- Experimental Sensor Array Experimental Signal Interpreter Thermal Shield Tractor Beam Coil Gun Coil Gun Dirty Datajack (20) Dirty Datajack (20) Dirty Datajack (20) Dirty Datajack (20) Dirty Datajack (20) Dirty Datajack (20) Improved Plasma Cutter Makeshift Axe Vortex Lance (38) Vortex Lance (38) Peak State ------------ > --- POWER ------------ Neutrino Core Antimatter Reactor > --- PROPULSION ------- Makeshift Leg Flexi-carbon Leg Enhanced Flexi-carbon Leg Myomer Leg > --- UTILITY ---------- Improved Heat Sink High-capacity Storage Unit Structural Scanner Improved Trap Scanner Enhanced Optical Array Improved Target Analyzer Improved Transmission Jammer A0-MCA's Component Scanner > --- WEAPON ----------- Gamma Rifle Matter Neutralizer Vortex Cannon > --- INVENTORY -------- Scrap Suit Scrap Suit Energy Well Matter Compressor Experimental Sensor Array Improved Weapon Cycler Advanced ECM Suite Makeshift Light Armor Plating Makeshift Ablative Armor Advanced Hardlight Generator Mini Drone Bay Vortex Cannon Heavy Autocannon Thermoblaster Improved Plasma Cutter Vortex Lance Vortex Lance [Rating: 106] Favorites ----------- Power Deuterium Engine Engine Deuterium Engine Power Core Nuclear Core Reactor Light Antimatter Reactor Propulsion Improved Treads Treads Improved Treads Leg Flexi-carbon Leg Wheel Wheel Utility High-capacity Storage Unit Device Structural Scanner Storage High-capacity Storage Unit Processor Enhanced Optical Array Hackware Hacking Suite Protection Improved Medium Armor Plating Weapon Heavy Battle Rifle Energy Gun Spread Laser Energy Cannon Matter Neutralizer Ballistic Gun Heavy Battle Rifle Ballistic Cannon Gauss Cannon Launcher Subdweller Shrapnel Launcher Impact Weapon Flail Slashing Weapon Makeshift Sword Piercing Weapon Vortex Lance Special Melee Weapon Dirty Datajack Build | -11 -10 -10 -7 -7 -5 -5 -5 -5 -4 -4 -4 -4 ------- Run | Yrd Mat Sub Rec Scr Fac Upp Upp War Pro Fac Upp Upp Slots Evolved 12 | . . . . . 10 . . . . 2 . . Power 1 | . . . . . 1 . . . . . . . Propulsion 4 | . . . . . 2 . . . . 2 . . Utility 6 | . . . . . 6 . . . . . . . Weapon 1 | . . . . . 1 . . . . . . . Parts Attached 167 | 2 11 9 2 2 34 14 1 7 2 51 24 8 Power 23 | . 1 1 1 1 4 4 . 1 . 7 3 . Engine 7 | . 1 1 . 1 . 2 . . . 2 . . Core 12 | . . . 1 . 4 2 . . . 4 1 . Reactor 4 | . . . . . . . . 1 . 1 2 . Propulsion 30 | 2 4 . . . 4 2 . 1 1 11 5 . Treads 8 | . 4 . . . . . . . . . 4 . Leg 8 | . . . . . 4 2 . 1 1 . . . Wheel 14 | 2 . . . . . . . . . 11 1 . Hover . | . . . . . . . . . . . . . Flight . | . . . . . . . . . . . . . Utility 60 | . 3 1 1 1 15 3 . 2 1 18 12 3 Device 40 | . 1 1 1 . 9 2 . . 1 14 8 3 Storage 10 | . 2 . . 1 1 . . . . 2 4 . Processor 3 | . . . . . 2 1 . . . . . . Hackware 1 | . . . . . 1 . . . . . . . Protection 6 | . . . . . 2 . . 2 . 2 . . Artifact . | . . . . . . . . . . . . . Weapon 54 | . 3 7 . . 11 5 1 3 . 15 4 5 Energy Gun 12 | . 3 2 . . 2 . . 2 . 2 . 1 Energy Cannon 4 | . . . . . . . 1 1 . 1 . 1 Ballistic Gun 12 | . . 2 . . 4 2 . . . 2 1 1 Ballistic Cannon 12 | . . . . . 2 . . . . 7 2 1 Launcher 5 | . . 2 . . 1 1 . . . 1 . . Special Weapon . | . . . . . . . . . . . . . Impact Weapon 1 | . . 1 . . . . . . . . . . Slashing Weapon 5 | . . . . . 2 2 . . . . 1 . Piercing Weapon 2 | . . . . . . . . . . 2 . . Special Melee Weapon 1 | . . . . . . . . . . . . 1 Unidentified Prototypes 2 | . . . . . 2 . . . . . . . Corrupted Parts 1 | . . . . . . . . . . . 1 . System Corruption 6 | . . . . . . . . . . . 6 . Parts Lost 80 | . . 3 . . 11 4 . . . 33 17 12 Power 13 | . . 1 . . 2 . . . . 7 1 2 Propulsion 20 | . . . . . 2 1 . . . 8 5 4 Utility 27 | . . 1 . . 4 2 . . . 9 8 3 Weapon 20 | . . 1 . . 3 1 . . . 9 3 3 Highest Loss Streak 12 | . . 2 . . 5 2 . . . 11 12 12 To Critical Strikes 2 | . . . . . . . . . . . . 2 Average Slot Usage (%) 95 | . 99 100 100 100 86 96 99 99 100 74 71 91 Engine 5 | . 14 14 2 6 2 3 . . . . . . Core 5 | . . . 11 7 5 6 11 10 5 4 1 . Treads 18 | . 27 28 28 28 5 . . . . . 9 19 Leg 5 | . . . . . 11 20 23 23 23 4 . . Device 14 | . 13 14 14 14 18 16 17 14 17 14 12 19 Storage 11 | . 14 14 14 14 5 5 5 5 5 6 15 16 Processor 4 | . . . . . 6 14 17 17 17 15 8 5 Protection 1 | . . . . . 4 5 5 7 5 3 . . Energy Gun 5 | . 27 26 . . 4 5 4 4 5 1 . . Ballistic Gun 13 | . . . 28 28 9 1 . . . 1 8 5 Ballistic Cannon 1 | . . . . . 1 5 5 4 . 6 5 . Peak Build Rating 106 | 7 14 17 18 25 96 90 89 105 105 106 88 93 Average Rating 43 | 6 13 14 17 21 71 84 87 92 104 78 69 88 On Entrance 55 | 6 7 14 17 18 23 81 87 89 105 105 76 87 Naked Turns . | . . . . . . . . . . . . . Heaviest Build 114 | 11 33 42 34 56 101 88 91 114 114 108 103 92 Greatest Support 93 | 20 46 46 46 46 88 83 83 93 93 93 84 10 Greatest Overweight (x) 35 | 3 . . . 1 3 1 1 1 1 35 24 9 Average Overweight (x) 1 | . . . . . . . . 1 1 2 5 8 Largest Inventory Capacity 20 | 8 15 15 15 20 20 20 20 20 20 20 20 20 Average Capacity 18 | 8 13 15 15 19 20 20 20 20 20 20 20 20 Most Carried 20 | 8 15 15 15 20 20 20 20 20 20 20 20 20 Average Carried 16 | 6 12 14 14 17 18 19 19 19 19 16 13 19 Final Capacity 20 | 8 15 15 15 20 20 20 20 20 20 20 20 20 Final Carried 20 | 8 15 15 15 20 18 20 20 20 20 14 20 16 Class Distribution -------------------- 62% | Mutant 8% | Derelict-Mutant 7% | Scavenger-Gunner 3% | Scavenger-Mutant 3% | Scavenger-Tank Dominant Class ---------------- Mutant | -10/Materials Mutant | -10/Subcaves Mutant | -7/Recycling Mutant | -7/Scraptown Derelict-Tank | -5/Factory Scavenger-Mutant | -5/Upper Caves Derelict-Mutant | -5/Upper Caves Derelict-Gunner | -5/Warlord Scavenger-Gunner | -4/Proximity Caves Scavenger-Tank | -4/Factory Gunner | -4/Upper Caves Derelict-Mutant | -4/Upper Caves Resources | -11 -10 -10 -7 -7 -5 -5 -5 -5 -4 -4 -4 -4 ----------- Run | Yrd Mat Sub Rec Scr Fac Upp Upp War Pro Fac Upp Upp Matter Collected 4518 | 220 339 165 145 296 721 389 34 109 20 1446 600 34 Remotely 443 | . . . . . . . . . . 443 . . Salvage Created 4301 | 123 625 177 . . 788 417 . . 80 1675 306 110 Parts 176 | 7 32 8 . . 36 4 . . 2 75 6 6 Haulers Intercepted 3 | . 2 . . . . . . . . 1 . . Recyclers Shooed 5 | . 1 . . . 2 . . . . 2 . . Parts Field Recycled . | . . . . . . . . . . . . . Retrieved Matter . | . . . . . . . . . . . . . Parts Self-Destructed 28 | . . 8 . . . 1 . . 9 . 4 6 Prevented 9 | . . . . . . 4 . . 5 . . . Kills | -11 -10 -10 -7 -7 -5 -5 -5 -5 -4 -4 -4 -4 ------- Run | Yrd Mat Sub Rec Scr Fac Upp Upp War Pro Fac Upp Upp Combat Hostiles Destroyed 82 | . 16 7 . . 11 3 . . 1 36 6 2 Melee 4 | . . . . . . . . . . 4 . . Guns 39 | . 16 7 . . 4 1 . . 1 7 3 . Cannons 31 | . . . . . 2 2 . . . 23 3 1 AOE 6 | . . . . . 4 . . . . 2 . . Classes Destroyed 15 | 2 5 2 . . 3 1 . . . 2 . . Worker 6 | . 3 . . . 1 . . . . 2 . . Builder 5 | . . . . . . . . . . 5 . . Tunneler 2 | 2 . . . . . . . . . . . . Hauler 3 | . 2 . . . . . . . . 1 . . Recycler 7 | 1 1 . . . 1 . . . . 4 . . Turret 2 | . . 2 . . . . . . . . . . Watcher 5 | . 3 . . . . . . . . 2 . . Swarmer 24 | . 3 . . . . . . . . 17 4 . Grunt 26 | . 13 . . . 6 2 . . 1 4 . . Brawler 1 | . . . . . 1 . . . . . . . Duelist 4 | . . . . . . 1 . . . 3 . . Sentry 2 | . . . . . . . . . . 2 . . Hunter 8 | . . . . . 1 . . . . 4 2 1 Programmer 10 | . . . . . 3 . . . . 6 . 1 Subdweller 7 | . . 7 . . . . . . . . . . Decomposer 1 | . . . . . . . . . . . 1 . Best Kill Streak 16 | 2 4 2 . . 6 1 . . 1 16 4 2 Combat Bots Only 12 | . 4 2 . . 6 1 . . 1 12 4 2 Max Kills in Single Turn 2 | 1 2 2 . . 2 1 . . 1 2 1 1 Gunslinging . | . . . . . . . . . . . . . Exploded 2 | . . . . . 2 . . . . 2 . . Melee 1 | . . . . . . . . . . 1 . . Uniques/NPCs Destroyed . | . . . . . . . . . . . . . Combat | -11 -10 -10 -7 -7 -5 -5 -5 -5 -4 -4 -4 -4 -------- Run | Yrd Mat Sub Rec Scr Fac Upp Upp War Pro Fac Upp Upp Hostile Shots Fired 889 | . 44 52 . . 111 27 . . 10 434 99 112 Missed 259 | . 10 22 . . 29 9 . . 2 116 36 35 Damage Taken 11313 | . 406 505 . . 2090 342 64 99 98 5255 1117 1337 Core 1765 | . 72 97 . . 282 59 12 82 9 866 212 74 Absorbed by Shields 382 | . . . . . . . . 17 77 288 . . Ignored by Resistances 111 | . . . . . 98 . . . . 13 . . Regen/Repaired (Parts) 401 | . 122 . . . . . . 279 . . . . Core Remaining (%) 62 | 100 . . . 32 . . . . 55 . . . Volleys Fired 279 | 10 47 23 . . 49 12 . . 8 103 20 7 Largest 3 | 2 2 2 . . 3 3 . . 2 3 3 3 Hottest 264 | 70 130 130 . . 158 264 . . 180 260 159 208 Shots Fired 599 | 20 94 46 . . 116 29 1 . 16 203 57 17 Gun 335 | 20 94 38 . . 87 18 . . 8 38 27 5 Cannon 241 | . . . . . 20 8 1 . 8 162 30 12 Launcher 23 | . . 8 . . 9 3 . . . 3 . . Special . | . . . . . . . . . . . . . Kinetic 353 | 10 . 8 . . 86 17 1 . . 166 57 8 Thermal 202 | 10 94 38 . . 21 9 . . 8 13 . 9 Explosive . | . . . . . . . . . . . . . Electromagnetic 29 | . . . . . 9 3 . . 8 9 . . Entropic 15 | . . . . . . . . . . 15 . . Robot Hit Streak 15 | 4 11 15 . . 7 5 . . 4 9 5 6 Robot Miss Streak 11 | 2 11 4 . . 11 3 . . 3 4 5 2 Penetration Max 1 | . . . . . 1 . . . . 1 . . Secondary Targets 3 | . 1 1 . . . . . . . . 1 . Max Gunslinging Chain 1 | . 1 1 . . . . . . . . 1 . Shots Hit Robots 375 | 12 87 35 . . 56 25 . . 8 108 34 10 Core Hits 300 | 5 109 53 . . 37 8 . . 2 69 13 4 Critical Kills 3 | . . . . . 1 . . . . 1 . 1 Critical Parts Destroyed 4 | . . . . . 1 1 . . . 1 1 . Critical Strikes 32 | . . . . . 3 1 . . . 23 3 2 Meltdown 1 | . . . . . . . . . . . . 1 Destroy 6 | . . . . . 2 1 . . . 2 1 . Blast 21 | . . . . . 1 . . . . 17 2 1 Corrupt 1 | . . . . . . . . . . 1 . . Sunder 3 | . . . . . . . . . . 3 . . Melee Attacks 25 | . . 2 . . 4 10 . . . 4 5 . Impact 2 | . . 2 . . . . . . . . . . Slashing 19 | . . . . . 4 10 . . . . 5 . Piercing . | . . . . . . . . . . . . . Entropic 4 | . . . . . . . . . . 4 . . Sneak Attacks . | . . . . . . . . . . . . . Combat Hostiles . | . . . . . . . . . . . . . Follow-up Attacks . | . . . . . . . . . . . . . Damage Inflicted 13150 | 132 1120 792 . . 2197 1124 . . 259 6127 1068 331 Guns 4520 | 132 1120 572 . . 1164 326 . . 186 635 272 113 Cannons 5689 | . . . . . 279 181 . . 73 4467 471 218 Explosions 1765 | . . 220 . . 743 110 . . . 692 . . Melee 1162 | . . . . . . 507 . . . 330 325 . Ramming 14 | . . . . . 11 . . . . 3 . . Kinetic 6807 | 45 . 220 . . 1216 339 . . . 4083 743 161 Thermal 3480 | 87 1120 572 . . 275 168 . . 73 1015 . 170 Explosive . | . . . . . . . . . . . . . Electromagnetic 1128 | . . . . . 695 110 . . 186 137 . . Impact . | . . . . . . . . . . . . . Slashing 832 | . . . . . . 507 . . . . 325 . Piercing . | . . . . . . . . . . . . . Entropic 889 | . . . . . . . . . . 889 . . Highest Corruption 28 | . . . . . 26 26 26 28 . 10 16 16 Average Corruption 16 | . . . . . 8 26 26 26 . 7 15 16 Corruption Purged . | . . . . . . . . . . . . . Corruption Blocked . | . . . . . . . . . . . . . Effects 225 | . . . . . 26 61 35 4 . 31 58 10 Message Errors 64 | . . . . . 5 19 11 1 . 11 13 4 Matter Fused 51 | . . . . . 10 14 6 1 . 6 10 4 Heat Flow Errors 29 | . . . . . 4 10 4 1 . 1 9 . Energy Discharges 25 | . . . . . 1 6 6 . . 5 6 1 Parts Rejected 3 | . . . . . 1 1 . . . . 1 . Parts Fused 2 | . . . . . . . 1 . . . 1 . Data Loss (minor) 24 | . . . . . 2 6 4 1 . 3 8 . Data Loss (major) 9 | . . . . . . 2 1 . . 1 5 . Misfires 6 | . . . . . 2 1 1 . . . 2 . Alerts 3 | . . . . . . 1 1 . . . . 1 Weapon Failures 9 | . . . . . 1 1 . . . 4 3 . Overload Shots 1 | . . . . . . 1 . . . . . . Overflow Damage 994 | . . . . . 22 177 . . . 659 136 . Projectiles 610 | . . . . . 20 2 . . . 570 18 . Explosions 91 | . . . . . 2 . . . . 89 . . Melee 293 | . . . . . . 175 . . . . 118 . Knockbacks 40 | . . . . . 3 3 . . . 32 1 1 Impact . | . . . . . . . . . . . . . Kinetic 36 | . . . . . 3 3 . . . 28 1 1 Secondary 4 | . . . . . . . . . . 4 . . Self-Inflicted Damage 261 | . . 11 . . 90 . . . . 160 . . Shots 10 | . . 1 . . 7 . . . . 2 . . Rammed 1 | . . . . . . . . . . 1 . . Targets Rammed 2 | . . . . . 1 . . . . 1 . . Kicked 1 | . . . . . 1 . . . . . . . Crushed . | . . . . . . . . . . . . . Highest Temperature 521 | 100 66 27 . . 521 430 296 74 370 516 245 502 Average Temperature 124 | 34 11 9 . . 179 148 116 40 160 120 93 363 Received Heat Transfer 863 | . 177 90 . . 192 162 . . 47 195 . . Effects 32 | . . . . . 15 6 . . 1 7 . 3 Shutdowns 10 | . . . . . 5 2 . . . 1 . 2 Energy Bleed 1 | . . . . . . . . . . 1 . . Interference 10 | . . . . . 6 . . . . 4 . . Matter Decay 1 | . . . . . . . . . . . . 1 Short Circuit 1 | . . . . . . . . . 1 . . . Damage (minor) 1 | . . . . . . . . . . 1 . . Damage (major) 8 | . . . . . 4 4 . . . . . . Siege Activations . | . . . . . . . . . . . . . Robots Corrupted 1 | . . . . . 1 . . . . . . . Combat Hostiles 1 | . . . . . 1 . . . . . . . Parts Fried 7 | . . . . . 4 . . . . 3 . . Impact Corruptions 2 | . . . . . . . . . . 2 . . Robots Melted 1 | . . . . . . . . . . . . 1 Combat Hostiles 1 | . . . . . . . . . . . . 1 Parts Melted 3 | . 1 . . . . 1 . . . 1 . . Heat Transferred 4354 | 259 1400 720 . . 346 198 . . 74 1133 . 224 Parts Sabotaged . | . . . . . . . . . . . . . Parts Stolen . | . . . . . . . . . . . . . Parts Stripped . | . . . . . . . . . . . . . Power Chain Reactions 2 | . . . . . 1 . . . . 1 . . Alert | -11 -10 -10 -7 -7 -5 -5 -5 -5 -4 -4 -4 -4 ------- Run | Yrd Mat Sub Rec Scr Fac Upp Upp War Pro Fac Upp Upp Peak Influence 776 | 15 243 . 150 . 530 . . . . 776 . . Initial 93 | . 9 . . . . . . . . 93 . . Average 156 | 8 106 . 65 . 153 . . . . 292 . . Maximum Alert Level 3 | . 1 . . . 2 . . . . 3 . . Low Security (%) 73 | 100 84 . 100 . 79 . . . . 31 . . Level 1 16 | . 15 . . . 5 . . . . 42 . . Level 2 9 | . . . . . 15 . . . . 22 . . Level 3 . | . . . . . . . . . . 3 . . Level 4 . | . . . . . . . . . . . . . Level 5 . | . . . . . . . . . . . . . High Security . | . . . . . . . . . . . . . Max Security . | . . . . . . . . . . . . . Squads Dispatched 18 | . 5 . . . 5 . . . . 8 . . Investigation 5 | . 3 . . . . . . . . 2 . . Extermination 5 | . . . . . 2 . . . . 3 . . Reinforcement 8 | . 2 . . . 3 . . . . 3 . . Assault . | . . . . . . . . . . . . . Garrison . | . . . . . . . . . . . . . Intercept . | . . . . . . . . . . . . . Searches Triggered . | . . . . . . . . . . . . . Construction Impeded 1 | . . . . . 1 . . . . . . . Haulers Reinforced 1 | . . . . . . . . . . 1 . . Active Scanning Responses . | . . . . . . . . . . . . . Cargo Convoy Interrupts . | . . . . . . . . . . . . . Stealth | -11 -10 -10 -7 -7 -5 -5 -5 -5 -4 -4 -4 -4 --------- Run | Yrd Mat Sub Rec Scr Fac Upp Upp War Pro Fac Upp Upp Distress Signals 7 | . 3 . . . 3 . . 1 . . . . Communications Jammed 151 | . . . . . 78 . . . . 73 . . Distress Signals 151 | . . . . . 78 . . . . 73 . . Times Spotted 151 | . 28 13 . . 32 5 . 5 5 52 6 5 Peak Tracking Total 11 | . 5 2 . . 8 3 . 6 2 11 4 4 Tactical Retreats 11 | . 1 . . . 5 1 . . . 3 1 . Traps | -11 -10 -10 -7 -7 -5 -5 -5 -5 -4 -4 -4 -4 ------- Run | Yrd Mat Sub Rec Scr Fac Upp Upp War Pro Fac Upp Upp Traps Triggered 6 | . 2 . . . 1 . 1 1 . 1 . . Indirectly . | . . . . . . . . . . . . . Trap Hack Attempts . | . . . . . . . . . . . . . Triggered . | . . . . . . . . . . . . . Disarmed . | . . . . . . . . . . . . . Reprogrammed . | . . . . . . . . . . . . . Reused 1 | . . 1 . . . . . . . . . . Traps Extracted . | . . . . . . . . . . . . . Installed 1 | . . 1 . . . . . . . . . . Triggered 21 | . . . . . . 2 . 19 . . . . Most Traps Carried 3 | . . 1 . . . 3 2 . . . . . Machines | -11 -10 -10 -7 -7 -5 -5 -5 -5 -4 -4 -4 -4 ---------- Run | Yrd Mat Sub Rec Scr Fac Upp Upp War Pro Fac Upp Upp Machines Disabled 12 | . . 4 . . 5 . . . . 3 . . Max in Single Turn 2 | . . 2 . . 1 . . . . 2 . . Machines Repaired . | . . . . . . . . . . . . . Machines Dismantled . | . . . . . . . . . . . . . Machines Sabotaged . | . . . . . . . . . . . . . Overloaded Fab Kills . | . . . . . . . . . . . . . Hacking | -11 -10 -10 -7 -7 -5 -5 -5 -5 -4 -4 -4 -4 --------- Run | Yrd Mat Sub Rec Scr Fac Upp Upp War Pro Fac Upp Upp Machines Accessed 41 | . 9 . 13 4 4 1 1 2 . 6 1 . Terminals 16 | . 6 . 5 . 3 . . . . 2 . . Fabricators 2 | . . . . . . . . . . 2 . . Repair Stations 2 | . 1 . . . 1 . . . . . . . Recycling Units 10 | . 2 . 6 . . . . . . 2 . . Scanalyzers . | . . . . . . . . . . . . . Garrison Access . | . . . . . . . . . . . . . Total Hacks 101 | . 29 . 31 11 8 2 1 3 . 15 1 . Successful 59 | . 16 . 20 11 3 2 1 3 . 2 1 . Failed 40 | . 12 . 10 . 5 . . . . 13 . . Catastrophic 6 | . . . 2 . . . . . . 4 . . Database Lockouts 2 | . 1 . 1 . . . . . . . . . Manual 32 | . 14 . 12 . 2 . . . . 4 . . Terminals 55 | . 25 . 18 . 6 . . . . 6 . . Fabricators 3 | . . . . . . . . . . 3 . . Repair Stations 4 | . 2 . . . 2 . . . . . . . Recycling Units 16 | . 2 . 8 . . . . . . 6 . . Scanalyzers . | . . . . . . . . . . . . . Garrison Access . | . . . . . . . . . . . . . Terminal Hacks 38 | . 8 . 11 11 1 2 1 3 . . 1 . Record 13 | . . . 5 4 . 2 . 2 . . . . Part Schematic 1 | . . . 1 . . . . . . . . . Robot Analysis 8 | . 1 . 1 6 . . . . . . . . Prototype ID Bank 2 | . 2 . . . . . . . . . . . Open Door 3 | . . . . . . . 1 1 . . 1 . Open DSF 1 | . . . . . 1 . . . . . . . Machine Index 1 | . 1 . . . . . . . . . . . Terminal Index 1 | . . . 1 . . . . . . . . . Recycling Unit Index 1 | . . . 1 . . . . . . . . . Alert Level 2 | . 2 . . . . . . . . . . . Locate Traps 1 | . 1 . . . . . . . . . . . Security Status 1 | . . . 1 . . . . . . . . . Recall Investigation 1 | . 1 . . . . . . . . . . . Hauler Manifests 1 | . . . 1 . . . . . . . . . Derelict Proto ID Bank 1 | . . . . 1 . . . . . . . . Fabricator Hacks . | . . . . . . . . . . . . . Repair Station Hacks 3 | . 2 . . . 1 . . . . . . . Scan Component 2 | . 1 . . . 1 . . . . . . . Repair 1 | . 1 . . . . . . . . . . . Recycling Unit Hacks 2 | . . . 1 . . . . . . 1 . . Report Inventory 2 | . . . 1 . . . . . . 1 . . Scanalyzer . | . . . . . . . . . . . . . Garrison Access Hacks . | . . . . . . . . . . . . . Unauthorized Hacks 16 | . 6 . 8 . 1 . . . . 1 . . Terminals 7 | . 4 . 2 . 1 . . . . . . . Botnet 6 | . 3 . 2 . 1 . . . . . . . Disrupt 1 | . 1 . . . . . . . . . . . Fabricators 1 | . . . . . . . . . . 1 . . Overload 1 | . . . . . . . . . . 1 . . Repair Stations . | . . . . . . . . . . . . . Recycling Units 8 | . 2 . 6 . . . . . . . . . Tunnel 8 | . 2 . 6 . . . . . . . . . Scanalyzers . | . . . . . . . . . . . . . Garrison Access . | . . . . . . . . . . . . . Data Cores Recovered . | . . . . . . . . . . . . . Used . | . . . . . . . . . . . . . Hacking Detections 20 | . 7 . 4 . 4 . . . . 5 . . Full Trace Events 1 | . . . . . . . . . . 1 . . Feedback Events . | . . . . . . . . . . . . . Feedback Blocked . | . . . . . . . . . . . . . Robot Schematics Acquired . | . . . . . . . . . . . . . Robots Built . | . . . . . . . . . . . . . Authchips . | . . . . . . . . . . . . . Time . | . . . . . . . . . . . . . Total Robot Build Rating . | . . . . . . . . . . . . . Part Schematics Acquired 1 | . . . 1 . . . . . . . . . Parts Built . | . . . . . . . . . . . . . Authchips . | . . . . . . . . . . . . . Time . | . . . . . . . . . . . . . Total Part Build Rating . | . . . . . . . . . . . . . Parts Repaired 1 | . 1 . . . . . . . . . . . Time 32 | . 32 . . . . . . . . . . . Parts Recycled . | . . . . . . . . . . . . . Recycled Matter . | . . . . . . . . . . . . . Retrieved Matter . | . . . . . . . . . . . . . Retrieved Components . | . . . . . . . . . . . . . Parts Scanalyzed . | . . . . . . . . . . . . . Part Schematics Acquired . | . . . . . . . . . . . . . Parts Damaged . | . . . . . . . . . . . . . Bothacking | -11 -10 -10 -7 -7 -5 -5 -5 -5 -4 -4 -4 -4 ------------ Run | Yrd Mat Sub Rec Scr Fac Upp Upp War Pro Fac Upp Upp Used RIF Installer . | . . . . . . . . . . . . . Robots Hacked . | . . . . . . . . . . . . . Non-combat . | . . . . . . . . . . . . . Combat . | . . . . . . . . . . . . . Robot Hacks Applied . | . . . . . . . . . . . . . Relay Couplers Released . | . . . . . . . . . . . . . Fabnet Peak Effective % . | . . . . . . . . . . . . . Robots Rewired 5 | . . . . . . . . 5 . . . . Allies Hacked . | . . . . . . . . . . . . . Hacks Repelled . | . . . . . . . . . . . . . Allies | -11 -10 -10 -7 -7 -5 -5 -5 -5 -4 -4 -4 -4 -------- Run | Yrd Mat Sub Rec Scr Fac Upp Upp War Pro Fac Upp Upp Total Allies 6 | . . . . 1 . . . 5 . . . . Largest Group 5 | . . . . 1 1 . . 5 3 3 . . Highest-Rated Group 263 | . . . . 96 96 . . 263 179 172 . . Highest-Rated Ally 96 | . . . . 96 96 . . 65 65 65 . . Total Orders 19 | . . . . . 3 6 1 . 2 . 3 4 EXPLORE 9 | . . . . . . 3 1 . 1 . 2 2 RETURN 10 | . . . . . 3 3 . . 1 . 1 2 Ally Attacks 89 | . . . . . 63 . . 7 15 4 . . Total Damage 3327 | . . . . . 2401 . . 214 536 176 . . Kills 23 | . . . . . 16 . . 2 5 . . . Allies Corrupted . | . . . . . . . . . . . . . Allies Melted . | . . . . . . . . . . . . . Intel | -11 -10 -10 -7 -7 -5 -5 -5 -5 -4 -4 -4 -4 ------- Run | Yrd Mat Sub Rec Scr Fac Upp Upp War Pro Fac Upp Upp Robot Analysis Total 8 | . 1 . 1 6 . . . . . . . . Derelict Logs Recovered 12 | . . . . 3 . 2 2 . 1 . 2 2 Drone Launches 20 | . . . . . 3 5 1 . 2 . 3 6 Drone Recoveries 15 | . . . . . 3 3 . . 2 . 3 4 Exploration | -11 -10 -10 -7 -7 -5 -5 -5 -5 -4 -4 -4 -4 ------------- Run | Yrd Mat Sub Rec Scr Fac Upp Upp War Pro Fac Upp Upp Turns Passed 20628 | 77 1716 1612 667 8474 1501 1175 729 1238 594 1197 1332 316 Spaces Moved 9638 | 30 901 936 413 3824 667 581 373 588 291 480 423 131 Core 33 | 2 . . . . . . . . . 7 24 . Treads 6449 | . 888 936 413 3824 201 . . . . . 187 . Legs 2421 | 20 . . . . 466 581 373 588 291 102 . . Wheels 735 | 8 13 . . . . . . . . 371 212 131 Hover . | . . . . . . . . . . . . . Flight . | . . . . . . . . . . . . . Fastest Speed 80 | 80 80 160 160 160 120 120 125 195 195 101 103 200 Average Speed 197 | 115 158 160 160 219 188 184 194 195 195 158 279 212 Slowest Speed 1800 | 200 160 160 160 240 400 195 195 195 196 1800 1250 215 Overloaded Moves . | . . . . . . . . . . . . . Propulsion Burnouts . | . . . . . . . . . . . . . Robots Hopped . | . . . . . . . . . . . . . Cave-ins Triggered 1 | . . . . . 1 . . . . . . . Exploration Rate (%) 58 | 4 89 50 61 95 19 92 68 70 67 16 87 45 Regions Visited 12 Branch Regions 9 Pre-discovered Areas 9 | . 2 . 6 . . . . . . . 1 . Known Exits Taken 1 | . . . . . . . . . . 1 . . Unknown Exits Taken 11 | 1 1 1 1 1 1 1 1 1 1 . 1 . Scrap Searched 21 | . . . . 10 . 1 2 . 2 . 4 2 Spaces Dug 67 | . . 59 . . 4 2 . . . 2 . . Terrain Destroyed 280 | . . 81 . . 30 14 . . 6 125 13 11 Melee 6 | . . . . . 4 2 . . . . . . Projectile 138 | . . . . . 18 12 . . 6 78 13 11 AOE 136 | . . 81 . . 8 . . . . 47 . . Terrain Rammed . | . . . . . . . . . . . . . Walls Destroyed . | . . . . . . . . . . . . . Machines Disabled . | . . . . . . . . . . . . . Actions | -11 -10 -10 -7 -7 -5 -5 -5 -5 -4 -4 -4 -4 --------- Run | Yrd Mat Sub Rec Scr Fac Upp Upp War Pro Fac Upp Upp Total 10757 | 54 1099 1003 421 3908 811 650 382 685 303 758 530 153 Wait 297 | 9 104 18 . . 17 16 . 38 . 73 20 2 Move 9626 | 29 900 935 412 3823 666 580 372 587 290 479 422 131 Hop . | . . . . . . . . . . . . . Pick Up 191 | 2 20 9 3 43 23 9 4 6 1 38 31 2 Fast Attach 20 | 2 5 . . . 5 1 1 2 . 2 1 1 Attach 91 | . 2 3 . . 19 6 . 1 1 36 19 4 Detach 3 | . . . . . 1 . . 1 . . 1 . Swap 56 | . 4 6 2 2 10 7 . 4 1 13 4 3 Drop 122 | 2 17 6 4 40 11 4 5 12 2 9 7 3 Fire 279 | 10 47 23 . . 49 12 . . 8 103 20 7 Melee 25 | . . 2 . . 4 10 . . . 4 5 . Ram 1 | . . . . . . . . . . 1 . . Kick 1 | . . . . . 1 . . . . . . . Crush . | . . . . . . . . . . . . . Escape Stasis 5 | . . . . . 5 . . . . . . . Rewire 39 | . . . . . . 5 . 34 . . . . Trap 1 | . . 1 . . . . . . . . . . Miscellaneous . | . . . . . . . . . . . . . Route ------- -11/Scrapyard -10/Materials (discovered 5 exits: [*Mat x2] / [*Min x2] / [*Sub]) -10/Subcaves (discovered 3 exits: [*Mat x2] / *Rec) -7/Recycling (discovered 2 exits: *Fac / *Scr) -7/Scraptown (discovered 2 exits: *Fac x2) -5/Factory -5/Upper Caves -5/Upper Caves (discovered 2 exits: *Fac / *War) -5/Warlord -4/Proximity Caves -4/Factory (discovered 2 exits: *Upp x2) -4/Upper Caves -4/Upper Caves (discovered 1 exit: [*Res]) History --------- Turn | Location | Event 1 | -11/Scrapyard | Discovered new exit (range 3) 78 | -11/Scrapyard | Entered Materials 303 | -10/Materials | Build established: Mutant 491 | -10/Materials | Discovered new exit (range 11) 516 | -10/Materials | Discovered new exit (range 7) 578 | -10/Materials | Central database locked down 742 | -10/Materials | Repaired Imp. Treads 940 | -10/Materials | Discovered new exit (range 16) 1201 | -10/Materials | Discovered new exit (range 16) 1642 | -10/Materials | Discovered new exit (range 6) 1794 | -10/Materials | Entered Subcaves 1988 | -10/Subcaves | Discovered new exit (range 15) 2095 | -10/Subcaves | Shifting Twisted Machinery released Battle Rifle 2249 | -10/Subcaves | Shifting Twisted Machinery released Shrapnel Trap 2262 | -10/Subcaves | Shifting Twisted Machinery released Sub. Machine Gun 2348 | -10/Subcaves | Discovered new exit (range 15) 2745 | -10/Subcaves | Core integrity fell below 50% 3348 | -10/Subcaves | Discovered new exit (range 14) 3406 | -10/Subcaves | Entered Recycling 3845 | -7/Recycling | Discovered new exit (range 12) 4026 | -7/Recycling | Scanned before Scraplab entrance 4045 | -7/Recycling | Discovered new exit (range 11) 4050 | -7/Recycling | Entered Scraplab 4073 | -7/Recycling | Entered Scraptown 4329 | -7/Scraptown | Visited UFD Registry 4329 | -7/Scraptown | Registered with UFD as "Fluxparser" 4366 | -7/Scraptown | Visited Junk Repository 4413 | -7/Scraptown | Visited TADAMA 4449 | -7/Scraptown | Visited Red Mages 4588 | -7/Scraptown | Scanned Subdweller tech in exchange for log data 4593 | -7/Scraptown | Learned Research stockpile data 4595 | -7/Scraptown | Learned Factory terminal intel 4596 | -7/Scraptown | Learned Factory stockpile data 4811 | -7/Scraptown | Discovered new exit (range 7) 4871 | -7/Scraptown | Guru changed UFD alias to "Longninja" 5410 | -7/Scraptown | Visited Bundlers 5541 | -7/Scraptown | Visited Cave Peace 5608 | -7/Scraptown | Visited Junk Repository 5890 | -7/Scraptown | Visited Science Guys 6137 | -7/Scraptown | Visited Botcube Research 6456 | -7/Scraptown | Found Lrg. Botcube 6531 | -7/Scraptown | Visited Analyses Database 6591 | -7/Scraptown | Visited Infowarlord's Domain 6608 | -7/Scraptown | Found Exp. Sensor Array 6655 | -7/Scraptown | Visited Chapter 10 6753 | -7/Scraptown | Visited Scrap Suit Storage 6919 | -7/Scraptown | Visited LU-1G1's Boring Crew 7046 | -7/Scraptown | Visited Curators Association 7142 | -7/Scraptown | Visited Science Testing Area 7185 | -7/Scraptown | Visited A0-MCA Data Center 7202 | -7/Scraptown | Given a B- rating by A0-MCA 7204 | -7/Scraptown | Found A0-MCA's Component Scanner 7763 | -7/Scraptown | Found Scrap Suit 9587 | -7/Scraptown | Visited Fellowship of the Rings 10851 | -7/Scraptown | Lrg. Botcube activated 10885 | -7/Scraptown | Lrg. Botcube completed mutation into treaded form, armed with 4 guns. 10941 | -7/Scraptown | Found Scrap Suit 12400 | -7/Scraptown | Found Scrap Suit 12537 | -7/Scraptown | Discovered new exit (range 3) 12547 | -7/Scraptown | Entered Factory 12547 | -5/Factory | Accompanied by 1 ally 12547 | -5/Factory | Evolved 10 slots: Power x1, Propulsion x2, Utility x6, Weapon x1 12549 | -5/Factory | Loaded intel: 25 terminal locations 12552 | -5/Factory | Identified exit to DSF 13210 | -5/Factory | Build established: Derelict-Tank 13733 | -5/Factory | Lost 3 parts (1n2w) 13787 | -5/Factory | System corruption reached 10% 13854 | -5/Factory | Spotted B-75 Beast 13856 | -5/Factory | Crushed by falling debris 13887 | -5/Factory | Lost 5 parts (2p2u1w) 13913 | -5/Factory | Discovered new exit (range 15) 14048 | -5/Factory | Entered Upper Caves 14090 | -5/Upper Caves | Learned Factory emergency access door positions 14380 | -5/Upper Caves | Build established: Scavenger-Mutant 14656 | -5/Upper Caves | Learned location of 1 exit from Factory 14868 | -5/Upper Caves | Discovered new exit (range 18) 14940 | -5/Upper Caves | Found DCF Scrap (12 items) 15223 | -5/Upper Caves | Entered another Upper Caves area 15234 | -5/Upper Caves | Discovered new exit (range 19) 15250 | -5/Upper Caves | Build established: Derelict-Mutant 15266 | -5/Upper Caves | Learned Factory emergency access door positions 15328 | -5/Upper Caves | Learned location of 1 exit from Factory 15764 | -5/Upper Caves | Encountered a Warlord checkpoint 15935 | -5/Upper Caves | Discovered new exit (range 10) 15952 | -5/Upper Caves | Entered Warlord 16019 | -5/Warlord | System corruption cleaned by Quarantine Array 16285 | -5/Warlord | Visited the Vortex Lab 16290 | -5/Warlord | Warlord's base attacked by MAIN.C 16305 | -5/Warlord | Found Vortex Lance 16308 | -5/Warlord | Found Vortex Cannon 16311 | -5/Warlord | Found Vortex Cannon 16317 | -5/Warlord | Found Vortex Lance 16448 | -5/Warlord | Rebuked by Warlord 16451 | -5/Warlord | Build established: Commander-Gunner 16640 | -5/Warlord | Warlord forces counterattacked 16869 | -5/Warlord | Build established: Derelict-Gunner 16965 | -5/Warlord | Warlord base infiltrated, sounded retreat 16995 | -5/Warlord | Spotted Striker 17069 | -5/Warlord | Found Hvy. Autocannon 17100 | -5/Warlord | Spotted Striker 17100 | -5/Warlord | Spotted Striker 17110 | -5/Warlord | P-80 Master assimilated allied JK-6VJ(c) 17131 | -5/Warlord | Discovered new exit (range 19) 17144 | -5/Warlord | Lost 5 allies 17190 | -5/Warlord | Spotted Striker 17190 | -5/Warlord | Spotted B-86 Titan 17190 | -5/Warlord | Entered Proximity Caves 17190 | -4/Proximity Caves | Accompanied by 3 allies 17313 | -4/Proximity Caves | Build established: Scavenger-Gunner 17333 | -4/Proximity Caves | Discovered new exit (range 85) 17413 | -4/Proximity Caves | Learned Research emergency access door positions 17656 | -4/Proximity Caves | Attracted the attention of an 0b10 checkpoint 17784 | -4/Proximity Caves | Entered Factory 17784 | -4/Factory | Accompanied by 3 allies 17784 | -4/Factory | Evolved 2 slots: Propulsion x2 17785 | -4/Factory | Identified exit to Upper Caves 17893 | -4/Factory | Found Exp. Signal Interpreter 17984 | -4/Factory | Lost 3 allies 18081 | -4/Factory | Lost 11 parts (1p4n2u4w) 18154 | -4/Factory | Lost 4 parts (1p2u1w) 18288 | -4/Factory | Lost 4 parts (2p1n1w) 18372 | -4/Factory | Core integrity fell below 50% 18564 | -4/Factory | Build established: Scavenger-Tank 18704 | -4/Factory | Destroyed 12 combat bots 18712 | -4/Factory | Lost 10 parts (1p3n5u1w) 18789 | -4/Factory | Lost 4 parts (2p2w) 18934 | -4/Factory | System corruption reached 10% 18981 | -4/Factory | Entered Upper Caves 18989 | -4/Upper Caves | Learned Research trap positions 19062 | -4/Upper Caves | Core integrity fell below 20% 19102 | -4/Upper Caves | Lost 12 parts (1p5n4u2w) 19342 | -4/Upper Caves | Build established: Gunner 19430 | -4/Upper Caves | Lost 5 parts (4u1w) 19864 | -4/Upper Caves | Found DCF Scrap (12 items) 19898 | -4/Upper Caves | Build established: Scavenger-Skirmisher 20195 | -4/Upper Caves | Discovered new exit (range 21) 20313 | -4/Upper Caves | Entered another Upper Caves area 20323 | -4/Upper Caves | Discovered new exit (range 28) 20382 | -4/Upper Caves | Encountered a Warlord checkpoint 20426 | -4/Upper Caves | Build established: Derelict-Mutant 20482 | -4/Upper Caves | Learned Research terminal intel 20597 | -4/Upper Caves | Ambushed by research squad 20629 | -4/Upper Caves | Destroyed by H-77 Assassin with High-powered Shotgun Last Messages --------------- 20621_ Overheating: Matter decay (-24). 20622_ Penetrated by Slug. 20622_ Lgt. Antimatter Reactor destroyed. 20622_ Penetrated by Slug. 20622_ Slug penetrates Wall. 20622_ Penetrated by Slug. 20623_ Slug penetrates H-77 Assassin. 20623_ Slug penetrates Wall. 20623_ Penetrated by Slug. 20624_ Myomer Leg fries itself beyond repair. 20625_ Slug penetrates Wall. 20626_ Mni. Drone Bay destroyed. 20626_ Penetrated by Slug. 20626_ Slug penetrates Wall. 20626_ Identified Imp. Shock Absorption System. 20627_ >> Lost connection to Mini Drone. 20627_ Penetrated by Slug. 20627_ Adv. Plasma Cannon destroyed. 20628_ Slug penetrates Wall. 20628_ Penetrated by Slug. Map ----- +----------------------------------------------------+ | ?????????????????????????????????????????????????? | | ?????????????????????????????????????????????????? | | ?????????????????????????????????????????????????? | | ?????????????????????????????????????????????????? | | ?????????????????????????????????????????????????? | | ?????????????????????????????????????????????????? | | ?????????????????????????????????????????????????? | | ?????????????????????????????????????????????????? | | ?????????????????????????????????????????????????? | | ?????????????????????????????????????????????????? | | ?????????????????????????????????????????????????? | | ?????????????????????????????????????????????????? | | ?????????????????????????????????????????????????? | | ???????? ???????????????????????????????#####???? | | ???????? ??????????????????????????????# #???? | | ???????? ????????????????????????????# #???? | | ?????????? ?##????????????????????????# ##??? | | ???????????" ;# ????????#####??????##### # ###? | | ???????????"" ?????### ######## ## | | ??????????""" ?#### # ## # | | ????????" "" # ; | | ??????????? # ; n % ########## # # | | ??????????????# ???#;;;; #????????# # # # | | ???????????????# # %h #????????#### ## | | ????????????????# ;%% % #???????????# ## | | ????????????????#### [ @ ##??????????## ### | | ???????????????????### ;###???????????# # #?### | | ??????????????###??## ###########???## #???? | | ?????????????## ### ##### ###???? | | ???????####### # ##????? | | ??????## #?# ## ##### # #????? | | ???#### #?# ### #???# # #????? | | ??## ### h ### #???## # # ##????? | | ??? #### ;### ## #????## #?????? | | ??????? ### h##### ## ###???## ##?????? | | ########### # ##???#######??????? | | # ##???????????????? | | ###### # ##### ##?????########## | | #???# ##???### ##????# # | | #???# ##?????#### ##???# # | | "#+#???# ## ##???????#### ##??# ## ## | | # ?? / ### ##?????????# #### ### | | # # #?# ###???????## #?#### | | #"""???# ##?# #????????## #???## | | ######## ##?## #?????# #???? | | #??#### #?????# ##???# | | #???## #####????# ###????# | | #???######????????# #####??????# | | ##?????????????????## ##??????????# | | #### ### ##???????????????????####???????????# | +----------------------------------------------------+ Best States ------------- Heat Dissipation 57 Energy Generation 37 Energy Capacity 1335 Matter Stores 424 Matter Capacity 550 Sight Range 22 Robot Scan Range 20 Terrain Scan Range 16 Terrain Scan Density 10 ECM Strength 2 Jamming Range 14 Armor Coverage 325 Resistance: KI 25 Resistance: TH 20 Resistance: EX 50 Weapon Cycling 20 Evasion (%) 55 Target Analysis 6 Recoil Reduction 4 Matter Filtering 30 Particle Charging 20 Kinecelleration 40 Offensive Hacking 10 Item Schematics ----------------- Energy Well | -7/Recycling | Hacked Robot Schematics ------------------ None Fabricated ------------ Nothing Alien Tech Used ----------------- None Achievements -------------- None Challenges ------------ None Game ------ Seed EnhancedLinearAutohacker Manual? 0 Play Time 02:47:27 Cumulative 236.9 hours Start 2024.08.08 @ 11:49:11 End 2024.08.08 @ 14:49:28 Sessions 1 Manual Loads 0 Difficulty Rogue Special Mode None Game No. 174 Rogue 164 Adventurer 0 Explorer 10 Win Type - Total 3 Types 3/0/0/0/0/0/0/0/0 Lore% 55 Gallery% 67 Achievement% 53 Wizard Run 0 Options --------- Layout 1 ASCII 0 Keyboard 0 Movement Arrows Keybinds 1 Fullscreen 1 Font 24/Smallcaps Map View 50x35 Zoom Use 0% Tactical HUD 1 Map Filters NONE Filters NONE Steam 1 RUN: 4eb557cd-1172-4160-8766-9addc1e81661